[Event "Elitserien Allsvenskan 2018-19"]
[Site "Sweden"]
[Date "2019.03.30"]
[Round "8.8"]
[White "Thornert, Hakan"]
[Black "Namini, Armin"]
[Result "0-1"]
[ECO "B34"]
[WhiteElo "2191"]
[BlackElo "2210"]
[Annotator "NA"]
[PlyCount "136"]
[EventDate "2018.11.09"]
[EventType "team-tourn"]
[EventCountry "SWE"]
[SourceTitle "playchess.com"]
[Source "ChessBase"]
[SourceQuality "1"]
[TimeControl "40/5400+30:1800+30"]

1. e4 {[%emt 0:00:00]} c5 {[%emt 0:00:00]} 2. Nc3 {[%emt 0:00:00]} Nc6 {[%emt 0:00:00]} 3. Nge2 {[%emt 0:00:00]} g6 {[%emt 0:00:00]} 4. d4 {[%emt 0:00:00]} cxd4 {[%emt 0:00:00]} 5. Nxd4 {[%emt 0:00:02]} Bg7 {[%emt 0:00:03]} 6. Be3 {[%emt 0:00:10]} Nf6 {[%emt 0:00:07]} 7. Nxc6 {[%emt 0:00:41]} bxc6 {[%emt 0:00:09]} 8. e5 {[%emt 0:00:11]} Ng8 {[%emt 0:00:07]} 9. Bd4 {[%emt 0:00:52]} Qa5 {[%emt 0:01:25]} 10. e6 {[%emt 0:11:36]} Nf6 {[%emt 0:07:01]} 11. exf7+ {[%emt 0:01:00]} Kxf7 {[%emt 0:00:09]} 12. Bc4+ {[%emt 0:00:46] B34: Sicilian: Accelerated Dragon with 5 Nc3: sidelines} d5 {[%emt 0:01:13]} 13. Bb3 {[%emt 0:01:07]} Re8 {[%emt 0:06:51]} (13... Ba6 14. Qd2 e5 15. Bxe5 Rhe8 16. f4 Bh6 17. Qd4 Ng4 18. h3 Nxe5 19. fxe5 Rxe5+ 20. Qxe5 Re8 21. Qxe8+ Kxe8 22. Rd1 Qc5 23. Ne2 Qe3 24. c4 dxc4 25. Ba4 c3 26. Bxc6+ Ke7 {0-1 (26) Marholev,D (2407)-Georgiev,K (2651) Plovdiv 2003}) 14. Be5 {[%emt 0:03:48]} Kg8 {[%emt 0:09:45]} 15. O-O {[%emt 0:01:28]} Be6 $146 {[%emt 0:08:57]} ({Predecessor:} 15... e6 16. Qd4 Qb6 17. Qh4 Nd7 18. Bxg7 Kxg7 19. Na4 Qd8 20. Qxd8 Rxd8 {½-½ (59) Chebotarev,O (2425)-Kosintseva,T (2358) Vladimir 2002}) 16. Re1 {[%emt 0:10:06]} Bf7 {[%emt 0:00:30]} 17. Qf3 {[%emt 0:02:04]} Nd7 {[%emt 0:07:50]} 18. Bxg7 {[%emt 0:02:35]} Kxg7 {[%emt 0:00:05]} 19. Rad1 {[%emt 0:12:20]} Rad8 {[%emt 0:01:37]} 20. h4 {[%emt 0:06:35]} Nf6 {[%emt 0:06:14]} 21. Re5 {[%emt 0:01:45]} Qc7 {[%emt 0:01:41]} 22. Rde1 {[%emt 0:01:50]} h5 {[%emt 0:05:08]} 23. g3 {[%emt 0:04:34]} (23. Qh3 $11) 23... Ng4 {[%emt 0:07:24]} 24. Rg5 {[%emt 0:04:18]} e5 {[%emt 0:02:04]} 25. Ne2 {[%emt 0:06:41]} c5 {[%emt 0:08:53]} 26. c4 {[%emt 0:04:34]} e4 {[%emt 0:01:17]} 27. Qf4 {[%emt 0:02:54]} Ne5 {[%emt 0:08:42]} 28. Kf1 {[%emt 0:03:18]} Qe7 {[%emt 0:02:59]} 29. cxd5 {[%emt 0:02:57]} Nf3 {[%emt 0:04:51]} 30. Nc3 {[%emt 0:01:39]} Nxe1 {[%emt 0:01:41]} 31. Kxe1 {[%emt 0:00:13]} Qf6 {[%emt 0:00:40]} 32. Qe3 {[%emt 0:02:18]} Qd4 {[%emt 0:00:42]} 33. Qe2 {[%emt 0:04:53]} Re5 {[%emt 0:02:07]} 34. Rxe5 {[%emt 0:06:33]} Qxe5 {[%emt 0:00:02]} 35. Kf1 {[%emt 0:00:22]} Re8 {[%emt 0:01:23]} 36. Kg2 {[%emt 0:00:55]} e3 {[%emt 0:03:52]} 37. f3 {[%emt 0:01:41]} Qd4 {[%emt 0:00:01]} 38. Kf1 {[%emt 0:01:29]} Qd2 {[%emt 0:00:59]} 39. Ne4 {[%emt 0:00:33]} Qc1+ {[%emt 0:00:38]} 40. Kg2 {[%emt 0:00:17]} Rd8 {[%emt 0:01:11]} 41. Nc3 {[%emt 0:11:21]} a5 {[%emt 0:07:22]} 42. Nd1 {[%emt 0:12:02]} Qd2 {[%emt 0:05:08]} 43. Kf1 {[%emt 0:02:35]} Bxd5 {[%emt 0:03:36]} 44. Bxd5 {[%emt 0:00:19]} Rxd5 {[%emt 0:00:48]} 45. Nxe3 {[%emt 0:00:10]} Qc1+ {[%emt 0:00:20]} 46. Qe1 {[%emt 0:00:14]} Qxe1+ {[%emt 0:00:06]} 47. Kxe1 {[%emt 0:00:07]} Rd4 {[%emt 0:00:22]} 48. Ke2 {[%emt 0:01:48]} (48. Nc2 {is a better defense.} Rd8 49. Ne3) 48... a4 {[%emt 0:01:14]} 49. Nc2 {[%emt 0:00:19]} Rd8 {[%emt 0:00:26]} 50. Na3 {[%emt 0:00:18]} Kf6 {[%emt 0:00:39]} 51. Nc4 {[%emt 0:00:37]} Rd4 {[%emt 0:00:40]} 52. Nd2 {[%emt 0:01:08]} Ke6 {[%emt 0:02:46]} (52... c4 $142 53. Nb1 Rd3) 53. Ke3 {[%emt 0:00:31]} Kd5 {[%emt 0:00:49]} 54. b3 {[%emt 0:00:35]} Rb4 {[%emt 0:03:28]} 55. Kd3 {[%emt 0:00:51]} axb3 {[%emt 0:00:49]} 56. axb3 {[%emt 0:00:08]} Rb8 {[%emt 0:00:54]} 57. Ke3 {[%emt 0:00:29]} Rd8 {[%emt 0:02:50]} 58. Ne4 {[%emt 0:00:44]} Kc6 {[%emt 0:01:08]} 59. Kf4 {[%emt 0:00:49]} Rd3 {[%emt 0:01:31]} 60. Kg5 {[%emt 0:00:14]} Rxf3 {[%emt 0:00:43]} 61. Kxg6 {[%emt 0:00:20]} Rxb3 {[%emt 0:02:51]} 62. Kxh5 {[%emt 0:00:24]} Kd5 $19 {[%emt 0:02:11]} 63. Nxc5 {[%emt 0:02:24]} Kxc5 {[%emt 0:00:13]} 64. g4 {[%emt 0:01:31]} Kd6 {[%emt 0:00:06]} 65. g5 {[%emt 0:01:44]} Ke7 {[%emt 0:00:22]} 66. g6 {[%emt 0:01:36]} Kf8 {[%emt 0:00:17]} 67. Kh6 {[%emt 0:00:33]} Kg8 {[%emt 0:00:11]} 68. h5 {[%emt 0:00:23]} Rb5 {[%emt 0:00:33]} 0-1

[Event "Elitserien Allsvenskan 2018-19"]
[Site "Sweden"]
[Date "2019.03.30"]
[Round "8.8"]
[White "Mardell, Jonas"]
[Black "Dragicevic, Drazen"]
[Result "0-1"]
[ECO "B22"]
[WhiteElo "2024"]
[BlackElo "2334"]
[Annotator "NA"]
[PlyCount "113"]
[EventDate "2018.11.09"]
[EventType "team-tourn"]
[EventCountry "SWE"]
[SourceTitle "playchess.com"]
[Source "ChessBase"]
[SourceQuality "1"]
[TimeControl "40/5400+30:1800+30"]

1. e4 {[%emt 0:00:00]} c5 {[%emt 0:08:08]} 2. c3 {[%emt 0:00:00]} d5 {[%emt 0:00:21]} 3. exd5 {[%emt 0:00:00]} Qxd5 {[%emt 0:00:10]} 4. d4 {[%emt 0:00:00]} Nf6 {[%emt 0:00:43]} 5. Nf3 {[%emt 0:00:00]} e6 {[%emt 0:00:18]} 6. Be3 {[%emt 0:01:53]} cxd4 {[%emt 0:00:58]} 7. cxd4 {[%emt 0:00:10]} Nc6 {[%emt 0:00:51]} 8. Nc3 {[%emt 0:00:56]} Qd6 {[%emt 0:04:41]} 9. a3 {[%emt 0:00:31]} Be7 {[%emt 0:07:15]} 10. Bc4 {[%emt 0:03:25]} O-O {[%emt 0:01:36] B22: Sicilian: 2 c3} 11. Qd3 $146 {[%emt 0:13:30]} ({Predecessor:} 11. O-O Nd5 12. Rc1 Nxc3 13. Rxc3 h6 14. Qd2 Bf6 15. Rd3 Ne7 16. Bf4 Qd8 17. Ne5 g5 18. Bg3 Nf5 19. f4 {1-0 (32) Shkuran,D (2368)-Tanriverdi,E (2281) Lvov 2018}) 11... a6 {[%emt 0:10:20]} 12. b4 {[%emt 0:10:19]} Rd8 {[%emt 0:08:36]} 13. Rd1 {[%emt 0:12:30]} b5 {[%emt 0:06:36]} 14. Ba2 {[%emt 0:02:12]} Bb7 {[%emt 0:02:46]} 15. Bg5 {[%emt 0:12:35]} Nxd4 {[%emt 0:20:07]} 16. Nxd4 {[%emt 0:33:40]} e5 {[%emt 0:15:37]} 17. O-O {[%emt 0:03:03]} exd4 {[%emt 0:01:06]} 18. Ne2 {[%emt 0:03:04]} Nh5 {[%emt 0:07:44]} 19. Qf5 {[%emt 0:00:41]} Nf6 {[%emt 0:00:58]} 20. Rxd4 {[%emt 0:00:39]} Qc6 {[%emt 0:00:20]} 21. Rxd8+ {[%emt 0:00:18]} Rxd8 {[%emt 0:00:03]} 22. Nf4 {[%emt 0:00:17]} h6 {[%emt 0:00:23]} 23. Bxh6 {[%emt 0:00:20]} Qe4 {[%emt 0:00:54]} 24. Qg5 {[%emt 0:00:26]} Ne8 {[%emt 0:00:27]} 25. Qg3 {[%emt 0:00:22]} Rd2 {[%emt 0:00:49]} 26. Bb1 {[%emt 0:00:21]} Qe5 {[%emt 0:00:30]} 27. Ng6 {[%emt 0:01:43]} Qxg3 {[%emt 0:00:21]} 28. Nxe7+ {[%emt 0:00:02]} Kf8 {[%emt 0:00:05]} 29. hxg3 {[%emt 0:00:16]} gxh6 {[%emt 0:00:05]} 30. Nf5 {[%emt 0:00:12]} h5 {[%emt 0:00:49]} 31. Re1 {[%emt 0:00:06]} Rb2 {[%emt 0:00:34]} 32. Be4 {[%emt 0:00:09]} Bxe4 {[%emt 0:00:59]} 33. Rxe4 {[%emt 0:00:02]} Nf6 {[%emt 0:00:07]} 34. Re1 {[%emt 0:00:44]} Ra2 {[%emt 0:00:16]} 35. Rc1 {[%emt 0:00:27]} Kg8 {[%emt 0:00:42]} 36. f3 {[%emt 0:01:58]} Rxa3 {[%emt 0:00:08]} 37. Rc6 {[%emt 0:00:07]} Nd5 {[%emt 0:00:14]} 38. Rh6 {[%emt 0:01:17]} Nxb4 {[%emt 0:00:38]} 39. Rxh5 Nd3 {[%emt 0:00:45]} 40. Ne7+ {[%emt 0:01:06]} Kg7 {[%emt 0:01:01]} 41. Nf5+ $2 {[%emt 0:05:08]} (41. Kf1 $1 $15) 41... Kg8 $2 {[%emt 0:02:08]} (41... Kg6 $19 42. g4 b4) 42. Rg5+ {[%emt 0:11:37]} Kf8 {[%emt 0:00:46]} 43. Rh5 {[%emt 0:00:58]} Ke8 {[%emt 0:00:55]} 44. Rh8+ {[%emt 0:02:06]} Kd7 {[%emt 0:00:13]} 45. Ra8 {[%emt 0:00:06]} b4 {[%emt 0:02:03]} 46. Nd4 {[%emt 0:02:02]} Kd6 {[%emt 0:11:24]} 47. Kf1 {[%emt 0:03:25]} Kd5 {[%emt 0:02:03]} 48. Nc2 {[%emt 0:00:34]} Ra2 {[%emt 0:01:53]} 49. Rd8+ {[%emt 0:06:46]} Kc4 {[%emt 0:00:18]} 50. Ne3+ {[%emt 0:00:44]} Kc3 {[%emt 0:00:28]} 51. Rc8+ {[%emt 0:01:48]} Kd4 {[%emt 0:02:19]} 52. Nf5+ {[%emt 0:00:36]} ({Avoid the trap} 52. Rc4+ $2 Kxe3 53. Re4+ Kd2 $19) 52... Ke5 {[%emt 0:00:37]} 53. Ne3 {[%emt 0:00:35]} b3 {[%emt 0:01:21]} 54. f4+ $19 {[%emt 0:00:35]} (54. Rd8 {was called for.} Ra1+ 55. Ke2) 54... Kd4 {[%emt 0:03:49]} 55. Nd1 {[%emt 0:00:35]} b2 {[%emt 0:04:15]} 56. Nxb2 {[%emt 0:00:26]} Rxb2 {[%emt 0:00:31]} 57. Rc7 {Ke5} 0-1

[Event "Elitserien Allsvenskan 2018-19"]
[Site "Sweden"]
[Date "2019.03.31"]
[Round "9.1"]
[White "Akesson, Ralf"]
[Black "Eriksson, Jorgen"]
[Result "1-0"]
[ECO "A30"]
[WhiteElo "2343"]
[BlackElo "2206"]
[Annotator "NA"]
[PlyCount "101"]
[EventDate "2018.11.09"]
[EventType "team-tourn"]
[EventCountry "SWE"]
[SourceTitle "playchess.com"]
[Source "ChessBase"]
[SourceQuality "1"]
[TimeControl "40/5400+30:1800+30"]

1. c4 {[%emt 0:00:00]} c5 {[%emt 0:00:48]} 2. Nf3 {[%emt 0:00:00]} Nc6 {[%emt 0:00:13]} 3. d4 {[%emt 0:00:27]} cxd4 {[%emt 0:00:13]} 4. Nxd4 {[%emt 0:00:06]} Nf6 {[%emt 0:02:41]} 5. Nc3 {[%emt 0:00:11]} g6 {[%emt 0:00:17]} 6. e4 {[%emt 0:01:35]} Bg7 {[%emt 0:04:02]} 7. Be3 {[%emt 0:00:26]} O-O {[%emt 0:01:42] LiveBook: 2467 Games} 8. Be2 {[%emt 0:00:14]} d6 {[%emt 0:00:27]} 9. O-O {[%emt 0:00:34]} Nxd4 {[%emt 0:03:46]} 10. Bxd4 {[%emt 0:05:11]} Nd7 {[%emt 0:01:01] B38: Sicilian: Maroczy Bind with 5...Bg7 and 7...0-0} (10... Bd7 11. Qd3 Bc6 12. b4 a6 13. Qe3 Qb8 14. f4 b5 15. e5 Ne8 16. c5 dxe5 17. Bxe5 Qb7 18. Bf3 Bxf3 19. Qxf3 Qxf3 20. gxf3 {0-1 (37) Eljanov,P (2703)-Flores,D (2621) Batumi 2018}) 11. Rc1 {[%emt 0:04:48]} Bxd4 {[%emt 0:11:07]} 12. Qxd4 {[%emt 0:00:11]} Ne5 {[%emt 0:01:48]} 13. f4 $146 {[%emt 0:04:32]} ({Predecessor:} 13. Rfd1 b6 14. Nd5 Bb7 15. Rc3 f5 16. exf5 Rxf5 17. Rh3 Rf7 18. Qh4 {½-½ (40) Franciskovic,B (2309)-Turk,T (1958) Bol 2015}) 13... Nc6 {[%emt 0:01:33]} 14. Qd2 {[%emt 0:00:43]} Qb6+ {[%emt 0:07:30]} 15. Kh1 {[%emt 0:04:26]} Qd4 {[%emt 0:00:30]} 16. Qe1 {[%emt 0:02:40]} Be6 {[%emt 0:08:48]} 17. Rd1 {[%emt 0:10:27]} Qc5 {[%emt 0:02:08]} 18. Nd5 {[%emt 0:10:04]} Bxd5 {[%emt 0:05:29]} 19. exd5 {[%emt 0:05:31]} Nd4 {[%emt 0:03:22]} 20. Bd3 {[%emt 0:02:25]} e6 {[%emt 0:03:22]} 21. b4 {[%emt 0:14:04]} Qb6 {[%emt 0:01:35]} 22. Bb1 {[%emt 0:02:35]} Rac8 {[%emt 0:06:15]} 23. dxe6 {[%emt 0:06:52]} fxe6 {[%emt 0:01:57]} 24. a3 {[%emt 0:06:32]} Rce8 {[%emt 0:13:46]} 25. Qe3 {[%emt 0:04:36]} e5 {[%emt 0:06:22]} 26. fxe5 {[%emt 0:01:38]} Rxf1+ {[%emt 0:04:16]} 27. Rxf1 {[%emt 0:00:02]} Rxe5 {[%emt 0:05:33]} 28. Be4 {[%emt 0:01:30]} Nf5 {[%emt 0:00:46]} 29. Qxb6 {[%emt 0:01:23]} axb6 {[%emt 0:00:02]} 30. Bxb7 {[%emt 0:00:12]} Re3 {[%emt 0:01:47]} 31. Ra1 {[%emt 0:09:54]} Nd4 {[%emt 0:01:43]} 32. h3 {[%emt 0:00:27]} Nc2 {[%emt 0:00:27]} 33. Rd1 {[%emt 0:00:07]} Rxa3 {[%emt 0:00:38]} 34. Rxd6 {[%emt 0:00:21]} Nxb4 {[%emt 0:00:25]} 35. Rxb6 {[%emt 0:00:09]} Nd3 {[%emt 0:00:22]} 36. Kh2 {[%emt 0:01:03]} Kg7 {[%emt 0:00:41]} 37. Rd6 {[%emt 0:01:50]} Rc3 {[%emt 0:00:29]} 38. Bd5 {[%emt 0:00:37]} Ne5 {[%emt 0:00:33]} 39. Re6 {[%emt 0:00:18]} Nd3 {[%emt 0:00:29]} 40. Re3 {[%emt 0:00:41]} Kf6 {[%emt 0:00:32]} 41. Be4 {[%emt 0:02:05]} Rxc4 {[%emt 0:00:11]} 42. Bxd3 {[%emt 0:00:09]} Rc7 {[%emt 0:00:20]} 43. Kg3 {[%emt 0:00:29]} Ra7 {[%emt 0:00:15]} 44. h4 {[%emt 0:01:01]} Ra5 {[%emt 0:00:40]} 45. Rf3+ {[%emt 0:03:19]} Kg7 {[%emt 0:01:27]} 46. Rf4 {[%emt 0:04:58]} Ra7 {[%emt 0:07:25]} 47. Rb4 {[%emt 0:01:07]} Kh6 {[%emt 0:02:36]} 48. Be4 {[%emt 0:00:36]} Re7 {[%emt 0:00:18]} 49. Bf3 {[%emt 0:00:33]} Re5 {[%emt 0:03:34]} 50. Rb7 $18 {[%emt 0:01:31]} g5 {[%emt 0:01:30]} 51. h5 {[%emt 0:03:33]} 1-0

[Event "Elitserien Allsvenskan 2018-19"]
[Site "Sweden"]
[Date "2019.03.31"]
[Round "9.3"]
[White "Pantzar, Milton"]
[Black "Larsson, Johan"]
[Result "1-0"]
[ECO "D32"]
[WhiteElo "2361"]
[BlackElo "2189"]
[Annotator "NA"]
[PlyCount "87"]
[EventDate "2018.11.09"]
[EventType "team-tourn"]
[EventCountry "SWE"]
[SourceTitle "playchess.com"]
[Source "ChessBase"]
[SourceQuality "1"]
[TimeControl "40/5400+30:1800+30"]

1. d4 {[%emt 0:00:00]} d5 {[%emt 0:00:46]} 2. c4 {[%emt 0:00:00]} e6 {[%emt 0:00:41]} 3. Nc3 {[%emt 0:00:23]} c5 {[%emt 0:01:18]} 4. cxd5 {[%emt 0:01:12]} exd5 {[%emt 0:00:28]} 5. Nf3 {[%emt 0:00:28]} Nc6 {[%emt 0:00:45]} 6. dxc5 {[%emt 0:00:56]} d4 {[%emt 0:00:39]} 7. Na4 {[%emt 0:00:10]} Bxc5 {[%emt 0:01:26] D32: Tarrasch Defence: Sidelines and lines without g3} 8. Nxc5 {[%emt 0:00:15]} Qa5+ {[%emt 0:00:16]} 9. Qd2 {[%emt 0:00:24]} (9. Bd2 Qxc5 10. Rc1 Qe7 11. e3 Nf6 12. Be2 O-O 13. O-O Rd8 14. Nxd4 Nxd4 15. exd4 Rxd4 {½-½ (71) Jakovenko,D (2749)-Mamedov,R (2708) Ankara 2018}) 9... Qxc5 {[%emt 0:00:33]} 10. a3 {[%emt 0:00:06]} Nge7 {[%emt 0:01:18]} 11. b4 {[%emt 0:00:54]} Qb6 {[%emt 0:00:11]} 12. Bb2 {[%emt 0:00:24]} O-O {[%emt 0:00:26]} 13. Bxd4 {[%emt 0:00:38]} Nxd4 {[%emt 0:00:43]} 14. Qxd4 {[%emt 0:00:05]} Nc6 {[%emt 0:00:13]} 15. Qb2 {[%emt 0:00:46]} a5 $146 {[%emt 0:02:09]} 16. b5 {[%emt 0:00:07]} a4 {[%emt 0:06:01]} 17. e3 {[%emt 0:01:00]} Na5 {[%emt 0:05:39]} 18. Rd1 {[%emt 0:03:11]} Nb3 {[%emt 0:07:45]} 19. Bc4 {[%emt 0:09:55]} Qa5+ {[%emt 0:06:16]} 20. Nd2 {[%emt 0:02:45]} Rd8 {[%emt 0:09:16]} 21. Bxb3 {[%emt 0:03:22]} axb3 {[%emt 0:02:30]} 22. O-O {[%emt 0:01:54]} Be6 {[%emt 0:04:20]} 23. Nxb3 {[%emt 0:10:44]} Qxb5 {[%emt 0:09:59]} 24. Rb1 {[%emt 0:00:34]} Qg5 {[%emt 0:17:24]} 25. Rfe1 {[%emt 0:27:40]} Bh3 {[%emt 0:04:48]} 26. f4 {[%emt 0:02:05]} Qg6 {[%emt 0:01:15]} 27. Nd4 {[%emt 0:08:35]} b6 {[%emt 0:03:16]} 28. Nf3 {[%emt 0:07:58]} f6 {[%emt 0:07:27]} 29. Qf2 {[%emt 0:13:35]} Bg4 {[%emt 0:03:10]} 30. Nd4 {[%emt 0:01:03]} Rxa3 {[%emt 0:01:11]} 31. Rxb6 {[%emt 0:00:22]} Qe4 {[%emt 0:00:25]} 32. h3 {[%emt 0:02:20]} Bh5 {[%emt 0:01:29]} 33. Re6 {[%emt 0:00:39]} Qd5 {[%emt 0:00:41]} 34. Re7 {[%emt 0:01:12]} Qc5 {[%emt 0:01:30]} 35. Rxg7+ {[%emt 0:00:23]} Kh8 {[%emt 0:00:35]} 36. Qg3 {[%emt 0:01:04]} Qd5 {[%emt 0:00:39]} 37. Kh2 {[%emt 0:00:41]} Bg6 {[%emt 0:00:27]} 38. Re7 {[%emt 0:00:28]} Rg8 {[%emt 0:00:25]} 39. Qh4 {[%emt 0:00:29]} Ra6 {[%emt 0:00:34]} 40. Rg1 {[%emt 0:00:38]} Be4 {[%emt 0:00:34]} 41. Ne2 {[%emt 0:05:53]} Qd3 $2 {[%emt 0:13:44]} (41... Bc2 42. Nd4 Bd3) 42. Ng3 {[%emt 0:02:27]} Ba8 {[%emt 0:02:33]} 43. f5 {[%emt 0:03:33]} Rg7 {[%emt 0:00:32]} 44. Qh6 {[%emt 0:00:19]} 1-0

[Event "Elitserien Allsvenskan 2018-19"]
[Site "Sweden"]
[Date "2019.03.31"]
[Round "9.3"]
[White "Ernst, Thomas"]
[Black "Laveryd, Peter"]
[Result "1-0"]
[ECO "B04"]
[WhiteElo "2330"]
[BlackElo "2375"]
[Annotator "NA"]
[PlyCount "115"]
[EventDate "2018.11.09"]
[EventType "team-tourn"]
[EventCountry "SWE"]
[SourceTitle "playchess.com"]
[Source "ChessBase"]
[SourceQuality "1"]
[TimeControl "40/5400+30:1800+30"]

1. e4 {[%emt 0:00:00]} Nf6 {[%emt 0:00:18]} 2. e5 {[%emt 0:00:00]} Nd5 {[%emt 0:00:11]} 3. d4 {[%emt 0:00:00]} d6 {[%emt 0:00:07]} 4. Nf3 {[%emt 0:00:06]} dxe5 {[%emt 0:00:56]} 5. Nxe5 {[%emt 0:00:06]} c6 {[%emt 0:00:17]} 6. Bc4 {[%emt 0:00:39]} g6 {[%emt 0:02:56]} 7. O-O {[%emt 0:04:11]} Bg7 {[%emt 0:01:09]} 8. Re1 {[%emt 0:00:13]} O-O {[%emt 0:00:39]} 9. Bb3 {[%emt 0:03:26]} Bf5 {[%emt 0:11:16] B04: Alekhine's Defence: 4 Nf3} 10. Nd2 {[%emt 0:07:26]} Nd7 {[%emt 0:05:31]} 11. Nef3 $146 {[%emt 0:00:33]} ({Predecessor:} 11. Ndf3 Nxe5 12. Nxe5 a5 13. a4 Qc7 14. c3 Rad8 15. Qf3 Qc8 16. h3 Be6 17. Bd2 {1-0 (56) Shirov,A (2718)-Agdestein,S (2591) Bergen 2001}) 11... a5 {[%emt 0:08:30]} 12. a4 {[%emt 0:03:27]} N7f6 {[%emt 0:06:44]} 13. Nc4 {[%emt 0:03:17]} Qc7 {[%emt 0:02:49]} 14. Nce5 {[%emt 0:02:30]} Rad8 {[%emt 0:02:52]} 15. Qe2 {[%emt 0:08:32]} c5 {[%emt 0:06:55]} 16. h3 {[%emt 0:04:40]} Bc8 {[%emt 0:13:44]} (16... cxd4 $14 17. Nxd4 Ne4) 17. Bd2 {[%emt 0:14:35]} b6 {[%emt 0:10:11]} 18. c3 {[%emt 0:08:09]} e6 {[%emt 0:04:11]} 19. Rac1 {[%emt 0:01:48]} Bb7 {[%emt 0:03:02]} 20. Bg5 {[%emt 0:05:00]} h6 {[%emt 0:01:39]} 21. Bd2 {[%emt 0:01:33]} Rfe8 {[%emt 0:04:42]} 22. Bc2 {[%emt 0:03:25]} Nh7 {[%emt 0:02:23]} 23. Bd3 {[%emt 0:03:49]} Nf8 {[%emt 0:04:13]} 24. Bb5 {[%emt 0:06:40]} Re7 {[%emt 0:00:13]} 25. b4 {[%emt 0:00:42]} Rc8 {[%emt 0:02:34]} 26. bxc5 {[%emt 0:05:33]} bxc5 {[%emt 0:00:20]} 27. c4 {[%emt 0:01:42]} Nb4 {[%emt 0:01:07]} 28. Bf4 {[%emt 0:01:47]} g5 {[%emt 0:00:54]} 29. Bg3 {[%emt 0:04:27]} Qb6 {[%emt 0:01:41]} 30. dxc5 {[%emt 0:00:25]} Qxc5 {[%emt 0:00:23]} 31. Rcd1 {[%emt 0:01:03]} Qa7 {[%emt 0:01:48]} 32. h4 {[%emt 0:01:31]} f6 {[%emt 0:00:36]} 33. Ng4 {[%emt 0:00:53]} e5 {[%emt 0:01:05]} 34. hxg5 {[%emt 0:00:57]} hxg5 {[%emt 0:00:02]} 35. Ne3 {[%emt 0:00:19]} Nc6 {[%emt 0:00:38]} 36. Nf5 {[%emt 0:00:30]} Rd7 {[%emt 0:00:07]} 37. Rxd7 {[%emt 0:02:02]} Nxd7 {[%emt 0:00:02]} 38. Bxc6 {[%emt 0:00:55]} Rxc6 {[%emt 0:00:02]} 39. Ne7+ {[%emt 0:00:10]} Kf7 {[%emt 0:01:17]} 40. Nxc6 {[%emt 0:00:17]} Bxc6 {[%emt 0:00:02]} 41. Qc2 {[%emt 0:30:29]} e4 {[%emt 0:03:04]} 42. Rxe4 {[%emt 0:00:00]} Bxe4 {[%emt 0:01:58]} 43. Qxe4 {[%emt 0:00:00]} Qc5 {[%emt 0:01:35]} 44. Nd2 {[%emt 0:00:00]} Nb6 {[%emt 0:05:57]} 45. Qd3 {[%emt 0:00:00]} Qc6 {[%emt 0:02:03]} 46. Ne4 {[%emt 0:00:00]} Bf8 {[%emt 0:00:26]} 47. Qf3 {[%emt 0:00:00]} Kg6 {[%emt 0:02:15]} 48. Bd6 {[%emt 0:00:00]} f5 {[%emt 0:07:34]} 49. Bxf8 {[%emt 0:00:00]} Qxe4 {[%emt 0:04:44]} 50. Qc3 {[%emt 0:00:00]} Kf7 {[%emt 0:01:17]} 51. Bh6 {[%emt 0:00:00]} Nxc4 {[%emt 0:01:20]} 52. Bxg5 {[%emt 0:00:00]} Ne5 {[%emt 0:03:37]} 53. f3 $18 {[%emt 0:00:00]} Qb1+ {[%emt 0:01:13]} 54. Kh2 {[%emt 0:00:00]} Qb8 {[%emt 0:00:20]} 55. Bf4 {[%emt 0:00:00]} Qh8+ {[%emt 0:00:12]} 56. Kg1 {[%emt 0:00:00]} Nxf3+ {[%emt 0:01:19]} 57. Qxf3 {[%emt 0:00:00]} Qa1+ {[%emt 0:00:06]} 58. Kh2 {[%emt 0:00:00]} 1-0

[Event "Elitserien Allsvenskan 2018-19"]
[Site "Sweden"]
[Date "2019.03.31"]
[Round "9.4"]
[White "Drugge, Patrik"]
[Black "Livner, Anders"]
[Result "0-1"]
[ECO "B19"]
[WhiteElo "2187"]
[BlackElo "2338"]
[Annotator "NA"]
[PlyCount "73"]
[EventDate "2018.11.09"]
[EventType "team-tourn"]
[EventCountry "SWE"]
[SourceTitle "playchess.com"]
[Source "ChessBase"]
[SourceQuality "1"]
[TimeControl "40/5400+30:1800+30"]

1. e4 {[%emt 0:00:25]} c6 {[%emt 0:00:00]} 2. d4 {[%emt 0:00:52]} d5 {[%emt 0:00:00]} 3. Nc3 {[%emt 0:00:12]} dxe4 {[%emt 0:00:00]} 4. Nxe4 {[%emt 0:00:04]} Bf5 {[%emt 0:00:24]} 5. Ng3 {[%emt 0:00:05]} Bg6 {[%emt 0:00:05]} 6. Nf3 {[%emt 0:00:38]} Nd7 {[%emt 0:00:14]} 7. h4 {[%emt 0:00:55]} h6 {[%emt 0:00:07]} 8. h5 {[%emt 0:00:02]} Bh7 {[%emt 0:00:07]} 9. Bd3 {[%emt 0:00:06]} Bxd3 {[%emt 0:00:04]} 10. Qxd3 {[%emt 0:00:03]} e6 {[%emt 0:00:07]} 11. Bf4 {[%emt 0:14:59]} Qa5+ {[%emt 0:00:25] B19: Classical Caro-Kann: 4...Bf5 main line} 12. Bd2 {[%emt 0:08:21]} Bb4 {[%emt 0:00:28]} 13. Ne4 {[%emt 0:02:19]} (13. c3 Be7 14. c4 Qc7 15. d5 cxd5 16. cxd5 Qd6 17. Qb5 Ngf6 18. dxe6 Qxe6+ 19. Kf1 {1-0 (64) Kokarev,D (2622)-Rozum,I (2586) Khanty-Mansiysk 2017}) 13... Ngf6 {[%emt 0:06:08]} 14. Nd6+ {[%emt 0:07:42]} Ke7 {[%emt 0:00:15]} 15. Nxb7 {[%emt 0:23:33]} Bxd2+ {[%emt 0:21:41]} 16. Nxd2 {[%emt 0:00:07]} Qb4 {[%emt 0:00:21]} 17. Qb3 {[%emt 0:04:17]} Qxd4 {[%emt 0:05:59]} 18. Qa3+ {[%emt 0:07:39]} c5 {[%emt 0:00:57]} 19. O-O-O {[%emt 0:00:13]} Rhc8 $146 {[%emt 0:05:53]} 20. Rh3 {[%emt 0:05:15]} (20. Na5 $11 {remains equal.}) 20... Rc7 {[%emt 0:06:05]} 21. Na5 {[%emt 0:01:02]} Qxf2 {[%emt 0:05:14]} 22. Ndc4 {[%emt 0:06:44]} Kf8 {[%emt 0:06:03]} 23. Nd6 {[%emt 0:02:55]} Rb8 {[%emt 0:10:59]} 24. Nac4 {[%emt 0:01:02]} Nb6 {[%emt 0:04:52]} 25. Rf3 $19 {[%emt 0:01:45]} (25. Ne5 $17) 25... Nxc4 {[%emt 0:04:31]} 26. Nxc4 {[%emt 0:00:06]} Qxg2 {[%emt 0:04:25]} 27. Qa5 {[%emt 0:05:40]} Rcc8 {[%emt 0:05:22]} 28. Rdf1 {[%emt 0:00:34]} Kg8 {[%emt 0:03:32]} 29. Kb1 {[%emt 0:02:20]} Rd8 {[%emt 0:00:59]} 30. Qe1 {[%emt 0:01:02]} Kh7 {[%emt 0:03:26]} 31. Ne5 {[%emt 0:01:48]} Rd2 {[%emt 0:03:04]} 32. Rg1 {[%emt 0:01:12]} Qe2 {[%emt 0:00:57]} 33. Qxe2 {[%emt 0:02:00]} Rxe2 {[%emt 0:00:01]} 34. Nxf7 {[%emt 0:00:28]} Nxh5 {[%emt 0:01:46]} 35. Rh1 {[%emt 0:00:03]} Rf8 {[%emt 0:02:20]} 36. b3 {[%emt 0:00:54]} Nf6 {[%emt 0:00:18]} 37. Nd6 0-1